fUST/lending_fUST_20240714
["ID","MTS","AMOUNT","RATE_DAILY","PERIOD"]
[332094450,1720957844345,-500.0,0.00025479,2]
[332094451,1720957844354,-500.0,0.00025479,2]
[332094452,1720957844364,-500.0,0.00025479,2]
[332094453,1720957844374,-500.0,0.00025479,2]
[332094454,1720957844383,-500.0,0.00025479,2]
[332094455,1720957844394,-500.0,0.00025479,2]
[332094456,1720957844404,-500.0,0.00025479,2]
[332094457,1720957844413,-500.0,0.00025479,2]
[332094458,1720957844422,-772.63,0.00025479,2]
[332094459,1720957844431,-500.0,0.00025479,2]
[332094460,1720957844507,-630.6,0.00025479,2]
[332094461,1720957844524,-500.0,0.00025479,2]
[332094462,1720957844534,-500.0,0.00025479,2]
[332094463,1720957844543,-500.0,0.00025479,2]
[332094464,1720957844553,-944.18,0.00025479,2]
[332094465,1720957844562,-625.0,0.00025479,2]
[332094466,1720957844571,-523.91,0.00025479,2]
[332094467,1720957844582,-500.0,0.00025479,2]
[332094468,1720957844592,-500.0,0.00025479,2]
[332094469,1720957844601,-260.12514962,0.00025479,2]
[332094470,1720957844610,-500.0,0.00025479,2]
[332094471,1720957844620,-704.17,0.00025479,2]
[332094472,1720957844629,-500.0,0.00025479,2]
[332094473,1720957844638,-475.87778118,0.00025479,2]
[332094474,1720957844647,-4347.09,0.00025479,2]
[332094475,1720957844657,-285.48338225,0.00025479,2]
[332094476,1720957844666,-500.0,0.00025479,2]
[332094477,1720957844676,-500.0,0.00025479,2]
[332094478,1720957844686,-527.69316306,0.00025479,2]
[332094479,1720957844698,-500.0,0.00025479,2]
[332094480,1720957844708,-200.0,0.00025479,2]
[332094481,1720957844719,-500.0,0.00025479,2]
[332094482,1720957844728,-500.0,0.00025479,2]
[332094483,1720957844739,-500.0,0.00025479,2]
[332094484,1720957844748,-500.0,0.00025479,2]
[332094485,1720957844758,-219.89208724,0.00025479,2]
[332094486,1720957844768,-500.0,0.00025479,2]
[332094487,1720957844777,-500.0,0.00025479,2]
[332094488,1720957844787,-500.0,0.00025479,2]
[332094489,1720957844802,-500.0,0.00025479,2]
[332094490,1720957844812,-1056.17,0.00025479,2]
[332094491,1720957844821,-500.0,0.00025479,2]
[332094492,1720957844831,-509.00051779,0.00025479,2]
[332094493,1720957844843,-500.0,0.00025479,2]
[332094494,1720957844853,-500.0,0.00025479,2]
[332094495,1720957844862,-500.0,0.00025479,2]
[332094496,1720957844872,-500.0,0.00025479,2]
[332094497,1720957844883,-500.0,0.00025479,2]
[332094498,1720957844893,-500.0,0.00025479,2]
[332094499,1720957844902,-500.0,0.00025479,2]
[332094500,1720957844911,-500.0,0.00025479,2]
[332094501,1720957844921,-504.44,0.00025479,2]
[332094502,1720957844930,-500.0,0.00025479,2]
[332094503,1720957844939,-500.0,0.00025479,2]
[332094504,1720957844949,-500.0,0.00025479,2]
[332094505,1720957844959,-500.0,0.00025479,2]
[332094506,1720957844969,-500.0,0.00025479,2]
[332094507,1720957844979,-500.0,0.00025479,2]
[332094508,1720957844988,-8884.66,0.00025479,2]
[332094509,1720957844998,-624.23983785,0.00025479,2]
[332094510,1720957845007,-551.08,0.00025479,2]
[332094511,1720957845016,-500.0,0.00025479,2]
[332094512,1720957845025,-1353.31,0.00025479,2]
[332094513,1720957845034,-372.52510944,0.00025479,2]
[332094514,1720957845045,-5477.45916084,0.0002549,3]
[332094515,1720957845054,-4077.48092461,0.000255,5]
[332094516,1720957845063,-2739.65995341,0.000255,5]
[332094517,1720957845073,-256911.74356641,0.000255,2]
[332094518,1720957845083,-150.112233,0.000255,6]
[332094519,1720957845092,-30000.0,0.00025501,2]
[332094520,1720957845102,-287.14415021,0.00025501,2]
[332094521,1720957845111,-176.8,0.00025548,2]
[332094522,1720957845120,-912.90986014,0.00025743,3]
[332094523,1720957845130,-500.0,0.00025753,2]
[332094524,1720957845140,-500.0,0.00025753,4]
[332094525,1720957845150,-332.28812319,0.00025753,2]
[332094526,1720957845159,-500.0,0.00025753,2]
[332094527,1720957845168,-500.0,0.00025753,2]
[332094528,1720957845178,-500.0,0.00025753,2]
[332094529,1720957845187,-504.16,0.00025753,2]
[332094530,1720957845196,-500.0,0.00025753,2]
[332094531,1720957845209,-500.0,0.00025753,2]
[332094532,1720957845219,-500.0,0.00025753,2]
[332094533,1720957845229,-500.0,0.00025753,2]
[332094534,1720957845238,-772.63,0.00025753,2]
[332094535,1720957845248,-500.0,0.00025753,2]
[332094536,1720957845258,-500.0,0.00025753,2]
[332094537,1720957845267,-500.0,0.00025753,2]
[332094538,1720957845277,-944.18,0.00025753,2]
[332094539,1720957845287,-625.0,0.00025753,2]
[332094540,1720957845296,-500.0,0.00025753,2]
[332094541,1720957845305,-500.0,0.00025753,2]
[332094542,1720957845314,-704.17,0.00025753,2]
[332094543,1720957845323,-500.0,0.00025753,2]
[332094544,1720957845332,-4347.09,0.00025753,2]
[332094545,1720957845342,-500.0,0.00025753,2]
[332094546,1720957845351,-500.0,0.00025753,2]
[332094547,1720957845360,-500.0,0.00025753,2]
[332094548,1720957845369,-200.0,0.00025753,2]
[332094549,1720957845379,-607.19484177,0.00025753,2]
[332094550,1720957845389,-500.0,0.00025753,2]
[332094551,1720957845398,-500.0,0.00025753,2]
[332094552,1720957845408,-500.0,0.00025753,2]
[332094553,1720957845417,-500.0,0.00025753,2]
[332094554,1720957845426,-500.0,0.00025753,2]
[332094555,1720957845435,-500.0,0.00025753,2]
[332094556,1720957845444,-500.0,0.00025753,2]
[332094557,1720957845454,-1056.17,0.00025753,2]
[332094559,1720957845463,-500.0,0.00025753,2]
[332094560,1720957845472,-500.0,0.00025753,2]
[332094561,1720957845481,-648.91210721,0.00025753,2]
[332094562,1720957845490,-500.0,0.00025753,2]
[332094563,1720957845499,-500.0,0.00025753,2]
[332094564,1720957845508,-500.0,0.00025753,2]
[332094565,1720957845519,-500.0,0.00025753,2]
[332094566,1720957845528,-458.19270656,0.00025753,2]
[332094567,1720957845538,-504.44,0.00025753,2]
[332094568,1720957845547,-315.60048944,0.00025753,2]
[332094569,1720957845557,-500.0,0.00025753,2]
[332094570,1720957845566,-500.0,0.00025753,2]
[332094571,1720957845575,-500.0,0.00025753,2]
[332094572,1720957845585,-500.0,0.00025753,2]
[332094573,1720957845594,-8884.66,0.00025753,2]
[332094574,1720957845603,-551.08,0.00025753,2]
[332094575,1720957845613,-500.0,0.00025753,2]
[332094576,1720957845624,-1353.31,0.00025753,2]
[332094577,1720957845634,-2930.80044754,0.00026,2]
[332094578,1720957845644,-912.90986014,0.00026017,3]
[332094579,1720957845655,-648.55804055,0.00026027,2]
[332094580,1720957845665,-500.0,0.00026027,4]
[332094581,1720957845675,-500.0,0.00026027,2]
[332094582,1720957845684,-500.0,0.00026027,2]
[332094583,1720957845694,-500.0,0.00026027,2]
[332094584,1720957845703,-500.0,0.00026027,2]
[332094585,1720957845713,-553.31966395,0.00026027,2]
[332094586,1720957845722,-500.0,0.00026027,2]
[332094587,1720957845731,-772.63,0.00026027,2]
[332094588,1720957845740,-500.0,0.00026027,2]
[332094589,1720957845749,-500.0,0.00026027,2]
[332094590,1720957845759,-500.0,0.00026027,3]
[332094591,1720957845768,-500.0,0.00026027,3]
[332094592,1720957845778,-500.0,0.00026027,2]
[332094593,1720957845787,-944.18,0.00026027,2]
[332094594,1720957845796,-625.0,0.00026027,2]
[332094595,1720957845809,-500.0,0.00026027,2]
[332094596,1720957845818,-500.0,0.00026027,2]
[332094597,1720957845827,-704.17,0.00026027,2]
[332094598,1720957845838,-500.0,0.00026027,2]
[332094599,1720957845847,-4347.09,0.00026027,2]
[332094600,1720957845857,-500.0,0.00026027,2]
[332094601,1720957845866,-500.0,0.00026027,2]
[332094602,1720957845879,-500.0,0.00026027,2]
[332094604,1720957845889,-500.0,0.00026027,2]
[332094606,1720957845898,-500.0,0.00026027,2]
[332094608,1720957845908,-500.0,0.00026027,2]
[332094609,1720957845917,-1056.17,0.00026027,2]
[332094610,1720957845927,-500.0,0.00026027,2]
[332094611,1720957845937,-500.0,0.00026027,2]
[332094613,1720957845946,-500.0,0.00026027,2]
[332094615,1720957845956,-504.44,0.00026027,2]
[332094617,1720957845965,-500.0,0.00026027,2]
[332094619,1720957845974,-500.0,0.00026027,2]
[332094620,1720957845985,-500.0,0.00026027,2]
[332094621,1720957845994,-8884.66,0.00026027,2]
[332094622,1720957846003,-551.08,0.00026027,2]
[332094623,1720957846012,-500.0,0.00026027,2]
[332094624,1720957846021,-1353.31,0.00026027,2]
[332094625,1720957846032,-176.8,0.00026035,2]
[332094626,1720957846044,-912.90986014,0.00026291,3]
[332094628,1720957846054,-500.0,0.00026301,4]
[332094630,1720957846064,-500.0,0.00026301,2]
[332094632,1720957846074,-500.0,0.00026301,2]
[332094634,1720957846084,-500.0,0.00026301,2]
[332094636,1720957846094,-646.42797551,0.00026301,2]
[332094638,1720957846105,-500.0,0.00026301,2]
[332094639,1720957846115,-772.63,0.00026301,2]
[332094641,1720957846126,-500.0,0.00026301,2]
[332094643,1720957846137,-500.0,0.00026301,2]
[332094645,1720957846148,-500.0,0.00026301,2]
[332094647,1720957846158,-944.18,0.00026301,2]
[332094648,1720957846167,-625.0,0.00026301,2]
[332094649,1720957846176,-315.1860659,0.00026301,2]
[332094651,1720957846186,-500.0,0.00026301,2]
[332094652,1720957846195,-151.0,0.00026301,7]
[332094654,1720957846204,-704.17,0.00026301,2]
[332094655,1720957846214,-184.87929523,0.00026301,2]
[332094657,1720957846223,-152.579321,0.00026301,7]
[332094659,1720957846233,-4347.09,0.00026301,2]
[332094661,1720957846243,-151.0,0.00026301,7]
[332094662,1720957846252,-500.0,0.00026301,2]
[332094663,1720957846261,-500.0,0.00026301,2]
[332094665,1720957846271,-213.924665,0.00026301,7]
[332094667,1720957846280,-213.924665,0.00026301,7]
[332094669,1720957846290,-151.0,0.00026301,7]
[332094671,1720957846368,-500.0,0.00026301,2]
[332094672,1720957846377,-500.0,0.00026301,2]
[332094673,1720957846387,-151.0,0.00026301,2]
[332094674,1720957846396,-500.0,0.00026301,2]
[332094675,1720957846405,-1056.17,0.00026301,2]
[332094676,1720957846414,-254.813357,0.00026301,7]
[332094677,1720957846426,-254.813357,0.00026301,7]
[332094678,1720957846437,-650.198832,0.00026301,7]
[332094679,1720957846447,-650.198832,0.00026301,7]
[332094680,1720957846458,-500.0,0.00026301,2]
[332094681,1720957846468,-500.0,0.00026301,2]
[332094682,1720957846477,-500.0,0.00026301,2]
[332094683,1720957846486,-518.415134,0.00026301,7]
[332094684,1720957846495,-185.930815,0.00026301,7]
[332094685,1720957846504,-184.140406,0.00026301,7]
[332094686,1720957846514,-518.415134,0.00026301,7]
[332094687,1720957846524,-185.930815,0.00026301,7]
[332094688,1720957846534,-184.140406,0.00026301,7]
[332094689,1720957846545,-504.44,0.00026301,2]
[332094690,1720957846556,-151.0,0.00026301,7]
[332094691,1720957846565,-284.674206,0.00026301,7]
[332094692,1720957846574,-151.0,0.00026301,7]
[332094693,1720957846584,-284.674206,0.00026301,7]
[332094694,1720957846594,-151.0,0.00026301,7]
[332094695,1720957846607,-250.459528,0.00026301,7]
[332094696,1720957846619,-500.0,0.00026301,2]
[332094697,1720957846631,-250.459528,0.00026301,7]
[332094698,1720957846641,-500.0,0.00026301,2]
[332094699,1720957846653,-500.0,0.00026301,2]
[332094700,1720957846664,-8884.66,0.00026301,2]
[332094701,1720957846674,-551.08,0.00026301,2]
[332094702,1720957846683,-500.0,0.00026301,2]
[332094703,1720957846692,-151.0,0.00026301,7]
[332094704,1720957846702,-419.325928,0.00026301,7]
[332094705,1720957846711,-419.325928,0.00026301,7]
[332094706,1720957846720,-1353.31,0.00026301,2]
[332094707,1720957846730,-550.469359,0.00026301,7]
[332094708,1720957846739,-550.469359,0.00026301,7]
[332094709,1720957846752,-1685.151208,0.000265,2]
[332094710,1720957846896,-215.39618594,0.00023968,2]
[332094711,1720957846910,-500.0,0.00024657,2]
[332094712,1720957846921,-500.0,0.00024657,2]
[332094713,1720957846930,-500.0,0.00024657,2]
[332094714,1720957846940,-500.0,0.00024657,2]
[332094715,1720957846951,-500.0,0.00024657,2]
[332094716,1720957846961,-500.0,0.00024657,2]
[332094717,1720957846973,-170.79616645,0.00024931,2]
[332094718,1720957846982,-156.22955595,0.00025204,2]
[332094719,1720957846991,-151.0,0.00026301,7]
[332094720,1720957847001,-1314.848792,0.000265,2]
[332094721,1720957847010,-151.0,0.000265,7]
[332094722,1720957847020,-151.0,0.000265,7]
[332094723,1720957847029,-151.0,0.000265,7]
[332094724,1720957847038,-151.0,0.000265,7]
[332094725,1720957847048,-205.23967,0.000265,7]
[332094726,1720957847060,-3000.0,0.0002651,2]
[332094727,1720957847070,-184.646015,0.0002651,7]
[332094728,1720957847080,-184.646015,0.0002651,7]
[332094729,1720957847090,-151.0,0.0002651,7]
[332094730,1720957847099,-211.930721,0.0002651,7]
[332094731,1720957847109,-3000.0,0.0002652,2]
[332094732,1720957847118,-151.0,0.0002652,7]
[332094733,1720957847128,-683.335403,0.0002652,7]
[332094734,1720957847139,-683.335403,0.0002652,7]
[332094735,1720957847151,-176.8,0.00026521,2]
[332094736,1720957847162,-3000.0,0.0002653,2]
[332094737,1720957847172,-295.226594,0.0002654,7]
[332094738,1720957847183,-356.977084,0.0002654,7]
[332094739,1720957847192,-356.977084,0.0002654,7]
[332094740,1720957847202,-151.0,0.0002654,4]
[332094741,1720957847212,-3000.0,0.0002654,2]
[332094742,1720957847221,-3000.0,0.0002655,2]
[332094743,1720957847231,-3000.0,0.0002656,2]
[332094744,1720957847241,-912.90986014,0.00026565,3]
[332094745,1720957847251,-3000.0,0.0002657,2]
[332094746,1720957847261,-500.0,0.00026575,4]
[332094747,1720957847270,-500.0,0.00026575,2]
[332094748,1720957847279,-500.0,0.00026575,2]
[332094749,1720957847289,-500.0,0.00026575,2]
[332094750,1720957847298,-500.0,0.00026575,2]
[332094751,1720957847308,-772.63,0.00026575,2]
[332094752,1720957847318,-500.0,0.00026575,2]
[332094753,1720957847328,-500.0,0.00026575,2]
[332094754,1720957847340,-500.0,0.00026575,2]
[332094755,1720957847353,-944.18,0.00026575,2]
[332094756,1720957847366,-625.0,0.00026575,2]
[332094757,1720957847376,-500.0,0.00026575,2]
[332094758,1720957847386,-704.17,0.00026575,2]
[332094759,1720957847397,-3266.5685244,0.00026575,2]
[332094760,1720957847409,-1080.5214756,0.00026575,2]
[332094761,1720957847418,-500.0,0.00026575,2]
[332094762,1720957847428,-309.1394754,0.00026575,2]
[332094763,1720957847438,-500.0,0.00026575,2]
[332094764,1720957847447,-500.0,0.00026575,2]
[332094765,1720957847456,-500.0,0.00026575,2]
[332094766,1720957847466,-1056.17,0.00026575,2]
[332094767,1720957847476,-500.0,0.00026575,2]
[332094768,1720957847486,-500.0,0.00026575,2]
[332094769,1720957847496,-500.0,0.00026575,2]
[332094770,1720957847508,-504.44,0.00026575,2]
[332094771,1720957847518,-35.66945579,0.00026575,2]
[332094772,1720957847650,-500.0,0.00024657,2]
[332094773,1720957847661,-464.33054421,0.00026575,2]
[332094774,1720957847671,-500.0,0.00026575,2]
[332094775,1720957847681,-500.0,0.00026575,2]
[332094776,1720957847692,-8330.88992418,0.00026575,2]
[332094780,1720958417429,207.37420516,0.00014999,2]
[332094781,1720958499967,92.28511433,0.00014999,2]
[332094782,1720958499996,62.83112816,0.00014999,2]
[332094798,1720958833144,-195.30405646,0.00018,2]
[332094799,1720958833170,-245.52580359,0.0002,2]
[332094800,1720958838099,-821.01962395,0.0002,2]
[332094801,1720958838563,-151.29618446,0.0002,2]
[332094802,1720958838591,-46.60472147,0.00021096,2]
[332094803,1720958847133,-405.11624249,0.00021096,2]
[332094804,1720958848144,-230.64948854,0.00021096,2]
[332094806,1720958852112,-67.6295475,0.00021096,2]
[332094807,1720958852138,-182.3704525,0.00021096,2]
[332094810,1720958960109,-313.5967175,0.00018996,2]
[332094811,1720958963172,-90.6655915,0.00021096,2]
[332094812,1720958963194,-161.865208,0.00022178,2]
[332094813,1720958963216,-250.0,0.00022549,2]
[332094814,1720958963237,-162.1183257,0.00022947,2]
[332094815,1720958963263,-161.348101,0.00022986,2]
[332094816,1720958963285,-24900.0,0.00023235,2]
[332094817,1720958963309,-313.5967175,0.00023996,2]
[332094818,1720958963330,-664.64,0.000243,2]
[332094819,1720958963353,-293.49365613,0.00024557,2]
[332094820,1720958974058,197.44371632,0.00021096,2]
[332094908,1720959038344,-566.83381676,0.00021096,2]
[332094911,1720959038354,-817.03236793,0.00023025,3]
[332094912,1720959038364,-158.35036999,0.00023025,2]
[332094913,1720959038375,-534.15056186,0.00023025,2]
[332094914,1720959038384,-493.97877951,0.00023025,2]
[332094915,1720959038394,-247.87133273,0.00023025,2]
[332094916,1720959038404,-163.47714891,0.00023025,2]
[332094917,1720959038414,-312.00309562,0.00024557,2]
[332094918,1720959038423,-444.69809084,0.00024557,2]
[332094919,1720959038434,-648.34806409,0.00024557,2]
[332094920,1720959038443,-10820.6674762,0.00024647,3]
[332094921,1720959038453,-500.0,0.00024657,2]
[332094922,1720959038462,-500.0,0.00024657,2]
[332094923,1720959038472,-505.30438848,0.00024657,2]
[332094924,1720959038482,-500.0,0.00024657,2]
[332094925,1720959038492,-500.0,0.00024657,2]
[332094926,1720959038501,-500.0,0.00024657,2]
[332094927,1720959038511,-500.0,0.00024657,2]
[332094928,1720959038521,-500.0,0.00024657,2]
[332094929,1720959038531,-500.0,0.00024657,2]
[332094930,1720959038541,-500.0,0.00024657,2]
[332094931,1720959038551,-500.0,0.00024657,2]
[332094932,1720959038560,-500.0,0.00024657,2]
[332094933,1720959038569,-538.08434675,0.00024657,2]
[332094934,1720959038579,-500.0,0.00024657,2]
[332094935,1720959038588,-500.0,0.00024657,2]
[332094936,1720959038598,-500.0,0.00024657,2]
[332094937,1720959038609,-500.0,0.00024657,2]
[332094938,1720959038619,-500.0,0.00024657,2]
[332094939,1720959038629,-500.0,0.00024657,2]
[332094940,1720959038640,-500.0,0.00024657,2]
[332094941,1720959038651,-500.0,0.00024657,2]
[332094942,1720959038660,-500.0,0.00024657,2]
[332094943,1720959038670,-500.0,0.00024657,2]
[332094944,1720959038680,-516.4731646,0.00024657,2]
[332094945,1720959038690,-500.0,0.00024657,2]
[332094946,1720959038700,-500.0,0.00024657,2]
[332094947,1720959038712,-524.07621317,0.00024657,2]
[332094948,1720959038723,-500.0,0.00024657,2]
[332094949,1720959038731,-500.0,0.00024657,2]
[332094950,1720959038742,-500.0,0.00024657,2]
[332094951,1720959038752,-541.82935569,0.00024657,2]
[332094952,1720959038761,-500.0,0.00024657,2]
[332094953,1720959038771,-500.0,0.00024657,2]
[332094954,1720959038780,-500.0,0.00024657,2]
[332094955,1720959038789,-500.0,0.00024657,2]
[332094956,1720959038798,-500.0,0.00024657,2]
[332094957,1720959038807,-500.0,0.00024657,2]
[332094958,1720959038818,-500.0,0.00024657,2]
[332094959,1720959038829,-500.0,0.00024657,2]
[332094960,1720959038839,-500.0,0.00024657,2]
[332094961,1720959038849,-500.0,0.00024657,2]
[332094962,1720959038858,-502.68106688,0.00024657,2]
[332094963,1720959038868,-500.0,0.00024657,2]
[332094964,1720959038878,-505.50530957,0.00024657,2]
[332094965,1720959038889,-500.0,0.00024657,2]
[332094966,1720959038900,-508.41629536,0.00024657,2]
[332094967,1720959038910,-500.0,0.00024657,2]
[332094968,1720959038920,-500.0,0.00024657,2]
[332094969,1720959038930,-500.0,0.00024657,2]
[332094970,1720959038939,-500.0,0.00024657,2]
[332094971,1720959038949,-287.558,0.00024657,2]
[332094972,1720959038959,-500.0,0.00024657,2]
[332094973,1720959038969,-500.0,0.00024657,2]
[332094974,1720959038978,-500.0,0.00024657,2]
[332094975,1720959038989,-500.0,0.00024657,2]
[332094976,1720959038999,-500.0,0.00024657,2]
[332094977,1720959039009,-500.3066454,0.00024657,2]
[332094978,1720959039018,-500.0,0.00024657,2]
[332094979,1720959039028,-500.0,0.00024657,2]
[332094980,1720959039040,-500.0,0.00024657,2]
[332094981,1720959039051,-500.0,0.00024657,2]
[332094982,1720959039060,-500.0,0.00024657,2]
[332094983,1720959039070,-500.0,0.00024657,2]
[332094984,1720959039080,-500.0,0.00024657,2]
[332094985,1720959039090,-500.0,0.00024657,2]
[332094986,1720959039100,-500.0,0.00024657,2]
[332094987,1720959039110,-352.74800429,0.00024657,2]
[332094988,1720959039122,-500.0,0.00024657,2]
[332094989,1720959039132,-500.0,0.00024657,2]
[332094990,1720959039143,-500.0,0.00024657,2]
[332094991,1720959039153,-500.0,0.00024657,2]
[332094992,1720959039162,-1500.0,0.00024657,2]
[332094993,1720959039171,-627.08065071,0.00024657,2]
[332094994,1720959039182,-866.32,0.00024657,2]
[332094995,1720959039192,-500.0,0.00024657,2]
[332094996,1720959039205,-500.0,0.00024657,2]
[332094997,1720959039214,-500.0,0.00024657,2]
[332094998,1720959039227,-500.0,0.00024657,2]
[332094999,1720959039237,-500.0,0.00024657,2]
[332095000,1720959039248,-500.0,0.00024657,2]
[332095001,1720959039258,-500.0,0.00024657,2]
[332095002,1720959039270,-500.0,0.00024657,2]
[332095003,1720959039281,-500.0,0.00024657,2]
[332095004,1720959039292,-500.0,0.00024657,2]
[332095005,1720959039302,-500.0,0.00024657,2]
[332095006,1720959039313,-500.0,0.00024657,2]
[332095007,1720959039323,-500.0,0.00024657,2]
[332095008,1720959039334,-500.0,0.00024657,2]
[332095009,1720959039343,-500.0,0.00024657,2]
[332095010,1720959039354,-500.0,0.00024657,2]
[332095011,1720959039365,-500.0,0.00024657,2]
[332095012,1720959039374,-500.0,0.00024657,2]
[332095013,1720959039384,-500.0,0.00024657,2]
[332095014,1720959039394,-500.0,0.00024657,2]
[332095015,1720959039404,-500.0,0.00024657,2]
[332095016,1720959039413,-500.0,0.00024657,2]
[332095017,1720959039423,-500.0,0.00024657,2]
[332095018,1720959039433,-500.0,0.00024657,2]
[332095019,1720959039443,-500.0,0.00024657,2]
[332095020,1720959039453,-500.0,0.00024657,2]
[332095021,1720959039465,-500.0,0.00024657,2]
[332095022,1720959039475,-500.0,0.00024657,2]
[332095023,1720959039484,-500.0,0.00024657,2]
[332095024,1720959039583,-209.06011589,0.00024657,2]
[332095025,1720959039593,-500.0,0.00024657,2]
[332095026,1720959039604,-500.0,0.00024657,2]
[332095027,1720959039615,-500.0,0.00024657,2]
[332095028,1720959039627,-500.0,0.00024657,2]
[332095029,1720959039638,-500.0,0.00024657,2]
[332095030,1720959039649,-500.0,0.00024657,2]
[332095032,1720959039658,-947.59,0.00024657,2]
[332095034,1720959039668,-500.0,0.00024657,2]
[332095036,1720959039678,-500.0,0.00024657,2]
[332095038,1720959039688,-502.77136037,0.00024657,2]
[332095040,1720959039697,-500.0,0.00024657,2]
[332095041,1720959039708,-500.0,0.00024657,2]
[332095042,1720959039720,-500.0,0.00024657,2]
[332095043,1720959039730,-500.0,0.00024657,2]
[332095044,1720959039741,-555.04902352,0.00024657,2]
[332095045,1720959039751,-572.91,0.00024657,2]
[332095046,1720959039761,-500.0,0.00024657,2]
[332095047,1720959039770,-500.0,0.00024657,2]
[332095048,1720959039780,-500.0,0.00024657,2]
[332095049,1720959039789,-500.0,0.00024657,2]
[332095050,1720959039799,-500.0,0.00024657,2]
[332095052,1720959039809,-500.0,0.00024657,2]
[332095053,1720959039818,-500.0,0.00024657,2]
[332095054,1720959039830,-524.13072905,0.00024657,2]
[332095055,1720959039840,-500.0,0.00024657,2]
[332095056,1720959039851,-500.0,0.00024657,2]
[332095057,1720959039862,-500.0,0.00024657,2]
[332095058,1720959039871,-500.0,0.00024657,2]
[332095059,1720959039880,-500.0,0.00024657,2]
[332095060,1720959039889,-500.0,0.00024657,2]
[332095061,1720959039898,-500.0,0.00024657,2]
[332095062,1720959039908,-500.0,0.00024657,2]
[332095063,1720959039920,-524.36373254,0.00024657,2]
[332095064,1720959039932,-500.0,0.00024657,2]
[332095065,1720959039944,-500.0,0.00024657,2]
[332095066,1720959039954,-500.0,0.00024657,2]
[332095067,1720959039964,-500.0,0.00024657,2]
[332095068,1720959039974,-500.0,0.00024657,2]
[332095069,1720959039984,-500.0,0.00024657,2]
[332095070,1720959039993,-500.0,0.00024657,2]
[332095071,1720959040005,-500.0,0.00024657,2]
[332095072,1720959040014,-500.0,0.00024657,2]
[332095074,1720959040024,-500.0,0.00024657,2]
[332095075,1720959040033,-500.0,0.00024657,2]
[332095076,1720959040042,-500.0,0.00024657,2]
[332095077,1720959040051,-505.10576265,0.00024657,2]
[332095078,1720959040061,-500.0,0.00024657,2]
[332095079,1720959040070,-500.0,0.00024657,2]
[332095080,1720959040080,-500.0,0.00024657,2]
[332095081,1720959040089,-500.0,0.00024657,2]
[332095083,1720959040099,-500.0,0.00024657,2]
[332095084,1720959040108,-500.0,0.00024657,2]
[332095085,1720959040117,-500.0,0.00024657,2]
[332095086,1720959040127,-500.0,0.00024657,2]
[332095088,1720959040137,-500.0,0.00024657,2]
[332095090,1720959040147,-500.0,0.00024657,2]
[332095092,1720959040156,-500.0,0.00024657,2]
[332095094,1720959040165,-522.25230848,0.00024657,2]
[332095096,1720959040174,-500.0,0.00024657,2]
[332095098,1720959040185,-500.0,0.00024657,2]
[332095100,1720959040198,-500.0,0.00024657,2]
[332095101,1720959040207,-200.0,0.00024657,2]